bitfinex/quotes_ETHUSD_20241001
["timestamp","ask_amount","ask_price","bid_price","bid_amount"]
[1727813754833,4.01985,2487.7,2486.8,0.9533]
[1727813755129,7.38,2487.9,2486.9,1.0766536]
[1727813755332,7.38,2487.9,2487.2,0.9963]
[1727813755333,0.09459532,2487.6,2487.2,0.9963]
[1727813755532,0.09459765,2487.8,2487.3,6.37088362]
[1727813755730,19.53,2489.1,2487.3,6.37088362]
[1727813755731,0.09453939,2487.5,2487.4,4.5463]
[1727813756037,0.9809,2489.1,2487.7,4.0542]
[1727813756038,4.01801,2488.8,2487.7,4.0542]
[1727813756244,4.01801,2488.8,2487.8,1.0542]
[1727813756441,4.11282534,2488.7,2487.8,1.0542]
[1727813756653,0.09466534,2488.7,2487.9,1.0542]
[1727813756963,0.09466534,2488.7,2488.1,1.0542]
[1727813757262,0.09470498,2488.6,2488.3,3.0]
[1727813757464,0.09470498,2488.6,2488.4,1.0542]
[1727813757688,0.09376695,2488.6,2488.4,1.0542]
[1727813758168,4.01745,2489.2,2488.4,1.0542]
[1727813758357,4.01707,2489.4,2488.4,1.0542]
[1727813758555,4.01769,2489.0,2488.4,1.0542]
[1727813758729,8.03483,2489.2,2488.4,1.0542]
[1727813758933,0.0947704,2488.9,2488.4,1.0542]
[1727813759148,4.01753,2489.1,2488.4,1.0542]
[1727813759479,4.419433,2489.0,2488.4,1.0542]
[1727813759625,0.49654181,2489.0,2488.4,1.0542]
[1727813759832,4.01794,2488.9,2488.4,1.0542]
[1727813760072,4.01802,2488.8,2488.4,1.0542]
[1727813760232,0.09472438,2488.8,2488.4,1.0542]
[1727813760435,4.419453,2489.0,2488.4,1.0542]
[1727813760743,4.11293169,2488.7,2488.4,1.0542]
[1727813760961,4.01817,2488.7,2488.1,1.0363]
[1727813761279,0.09471119,2488.6,2488.1,1.0363]
[1727813761570,4.11310119,2488.6,2488.1,1.0363]
[1727813761775,0.09471119,2488.6,2488.1,1.0363]
[1727813762801,8.8795963,2488.9,2488.1,1.0363]
[1727813763004,0.09469179,2488.5,2488.1,1.0363]
[1727813763292,4.01883,2488.3,2487.4,0.9984]
[1727813763499,4.01914,2488.1,2487.4,0.9984]
[1727813763649,4.02037,2487.4,2486.7,0.9984]
[1727813763858,1.13821939,2487.3,2486.7,0.9984]
[1727813764055,1.13821939,2487.3,2485.0,6.10916523]
[1727813764056,4.02096,2487.0,2485.8,0.9984]
[1727813764251,7.10656523,2487.1,2485.8,0.9984]
[1727813764551,4.02199,2486.4,2485.8,0.9984]
[1727813764876,0.09426443,2486.3,2485.8,0.9984]
[1727813765651,4.11631443,2486.3,2485.8,0.9984]
[1727813765852,4.02224,2486.2,2485.8,0.9984]
[1727813766100,4.02223,2486.2,2485.0,1.0117]
[1727813766255,4.02265,2486.0,2485.0,1.58178574]
[1727813766755,0.09385062,2485.9,2485.0,1.0117]
[1727813767402,4.02299,2485.8,2485.0,1.0117]
[1727813767693,0.09384178,2485.7,2485.2,0.9995]
[1727813767903,0.09384178,2485.7,2485.1,0.08047456]
[1727813767904,0.09384178,2485.7,2485.4,0.9995]
[1727813768052,4.02192,2486.4,2485.4,0.9995]
[1727813768256,4.826269,2486.4,2485.4,0.9995]
[1727813768487,0.09395846,2486.3,2485.4,0.9995]
[1727813769358,0.09395846,2486.3,2485.5,1.04426252]
[1727813769585,0.09395846,2486.3,2485.6,0.08044898]
[1727813769771,0.09395846,2486.3,2485.5,0.9638]
[1727813770193,4.02185,2486.5,2485.5,0.9638]
[1727813770578,4.02198,2486.4,2485.5,0.9638]
[1727813770782,4.826175,2486.5,2485.5,0.9638]
[1727813771413,4.0219,2486.4,2485.5,0.9638]
[1727813771574,4.02215,2486.3,2485.5,0.9638]
[1727813772691,4.0222,2486.2,2485.5,0.9638]
[1727813772877,4.4633343,2486.2,2485.5,0.9638]
[1727813774577,0.4411343,2486.2,2485.5,0.9638]
[1727813775823,8.184325,2486.5,2485.5,0.9638]
[1727813775824,4.0226,2486.0,2485.5,0.9638]
[1727813776139,4.02269,2485.9,2485.5,0.9638]
[1727813776342,4.02269,2485.9,2484.6,1.0451]
[1727813776632,4.02361,2485.4,2484.6,1.0451]
[1727813776831,0.402269,2485.8,2484.6,1.0451]
[1727813776832,8.04659,2485.6,2484.6,1.0451]
[1727813776993,4.02344,2485.5,2484.6,1.0451]
[1727813777928,0.09335723,2485.4,2484.6,1.0451]
[1727813779596,4.11686723,2485.4,2484.6,1.0451]
[1727813779795,4.93089795,2485.4,2484.6,1.0451]
[1727813779986,0.09335723,2485.4,2484.6,1.0451]
[1727813780195,4.02317,2485.6,2484.6,1.0451]
[1727813780520,0.09312416,2485.5,2484.8,1.0533]
[1727813780695,0.09312416,2485.5,2484.9,1.04427238]
[1727813780898,7.38,2485.9,2484.9,1.04427238]
[1727813781100,0.09294216,2485.4,2484.9,0.9638]
[1727813781327,4.02249,2486.1,2484.9,0.9638]
[1727813781548,0.0930773,2485.3,2484.9,0.9638]
[1727813781692,4.02268,2485.9,2484.9,0.9638]
[1727813782128,0.09317457,2485.8,2484.9,0.9638]
[1727813782327,10.2252898,2485.8,2484.9,0.9638]
[1727813782538,4.02302,2485.7,2484.9,0.9638]
[1727813782741,4.02333,2485.5,2484.9,0.9638]
[1727813783027,0.09309675,2485.4,2484.9,0.9638]
[1727813783437,4.0234,2485.5,2484.9,0.9638]
[1727813783616,0.09309675,2485.4,2484.9,0.9638]
[1727813783822,4.02334,2485.5,2484.9,0.9638]
[1727813783999,0.09309675,2485.4,2484.9,0.9638]
[1727813784196,4.02318,2485.6,2484.9,0.9638]
[1727813784433,0.09311621,2485.5,2484.9,0.9638]
[1727813784731,8.0469,2485.5,2484.9,0.9638]
[1727813784939,7.00695198,2485.4,2484.1,0.9996]
[1727813785094,4.02406,2485.1,2484.1,0.9996]
[1727813785540,0.09287225,2485.0,2484.1,0.9996]
[1727813786549,4.02463,2484.7,2484.1,0.9996]
[1727813786704,4.1175068,2484.9,2484.1,0.9996]
[1727813786910,0.0929884,2484.6,2484.1,0.9996]
[1727813787157,1.0226672,2484.8,2484.1,0.9996]
[1727813787443,4.02472,2484.7,2484.1,0.9996]
[1727813787603,4.02524,2484.4,2484.1,0.9996]
[1727813787809,0.09239823,2484.3,2484.1,0.9996]
[1727813788207,0.09239823,2484.3,2483.1,0.52624027]
[1727813788208,4.02514,2484.4,2483.2,1.0259]
[1727813788444,0.09237609,2484.3,2483.4,0.9629]
[1727813788831,0.402489,2484.5,2483.5,0.9970585]
[1727813789150,0.402489,2484.5,2483.4,0.52624027]
[1727813789151,0.09226921,2484.4,2483.7,0.9629]
[1727813789354,4.11738921,2484.4,2483.7,0.9629]
[1727813789559,4.02536,2484.3,2483.7,0.9629]
[1727813789853,26.68426523,2484.2,2483.1,0.9622]
[1727813790157,4.02657,2483.6,2483.1,0.9622]
[1727813790445,6.10916523,2483.8,2483.1,0.9622]
[1727813790446,0.09200227,2483.5,2483.1,0.9622]
[1727813790646,10.13532523,2483.8,2483.1,0.9622]
[1727813790817,4.02651,2483.6,2483.1,0.9622]
[1727813791021,4.02651,2483.6,2482.7,1.0501]
[1727813791022,1.12664304,2483.5,2482.7,1.0501]
[1727813791217,1.12664304,2483.5,2482.0,0.28191515]
[1727813791218,6.94326993,2483.4,2482.1,1.0501]
[1727813791425,1.12664304,2483.5,2482.5,1.0501]
[1727813791426,0.09183424,2483.3,2482.5,1.0501]
[1727813791744,7.38,2483.5,2482.6,0.52624027]
[1727813791911,0.09181475,2483.2,2482.7,0.9889]
[1727813792106,7.38,2483.5,2482.7,0.9889]
[1727813792107,7.38,2483.5,2482.7,1.59569397]
[1727813792307,0.09179525,2483.1,2482.7,0.9889]
[1727813792543,7.38,2483.5,2482.7,0.9889]
[1727813792707,0.09179052,2483.0,2482.7,0.9889]
[1727813793138,4.02691,2483.3,2482.7,0.9889]
[1727813793348,0.09171419,2482.9,2482.7,0.9889]
[1727813793517,5.80703,2483.4,2482.7,0.9889]
[1727813794150,0.09183424,2483.3,2482.5,0.9771]
[1727813795607,0.09183424,2483.3,2482.7,1.0383]
[1727813795946,7.38,2483.5,2482.7,1.0383]
[1727813796157,0.09033383,2483.2,2482.7,1.0383]
[1727813796315,4.02651,2483.6,2482.7,1.0383]
[1727813796515,0.0901774,2483.1,2482.7,1.0383]
[1727813796733,4.02651,2483.6,2482.7,1.0383]
[1727813796941,0.09013419,2483.0,2482.7,1.0383]
[1727813797209,11.40615,2483.8,2482.7,1.0383]
[1727813797210,0.09009888,2482.9,2482.7,1.0383]
[1727813797437,4.02643,2483.6,2482.7,1.0383]
[1727813797639,4.02676,2483.4,2482.7,1.0383]
[1727813797848,0.09001007,2483.5,2482.7,1.0383]
[1727813798152,4.02797,2482.7,2482.1,1.0421]
[1727813798324,4.02797,2482.7,2481.3,9.49]
[1727813798325,4.02854,2482.3,2481.3,0.9667]
[1727813798528,4.02822,2482.5,2481.3,0.9667]
[1727813798529,4.02837,2482.4,2481.3,0.9667]
[1727813798836,4.11746658,2482.3,2481.3,0.9667]
[1727813799406,4.52921324,2482.3,2481.3,0.9667]
[1727813799656,1.0245,2482.1,2481.3,0.9667]
[1727813799821,5.05347,2482.1,2481.3,0.9667]
[1727813800024,0.08885049,2482.0,2481.3,0.9667]
[1727813801060,1.0007,2482.5,2481.3,0.9667]
[1727813801256,1.0007,2482.5,2481.5,1.0344]
[1727813801257,0.0887161,2481.9,2481.5,1.0344]
[1727813801585,4.02863,2482.3,2481.5,1.0344]
[1727813801752,0.08869659,2481.8,2481.5,1.0344]
[1727813801952,4.889319,2482.3,2481.5,1.0344]
[1727813801953,11.40863,2482.3,2481.5,1.0344]
[1727813802295,11.40813,2482.6,2481.6,0.08059434]
[1727813802501,0.08877463,2482.2,2481.5,1.0344]
[1727813802678,7.38,2482.6,2481.5,1.0344]
[1727813802992,0.08852391,2482.1,2481.5,1.0344]
[1727813803205,4.02879,2482.2,2481.5,1.0344]
[1727813803397,0.08873561,2482.0,2481.5,1.0344]
[1727813803697,0.08875344,2481.9,2481.5,1.0344]
[1727813803848,4.02914,2482.0,2481.5,1.0344]
[1727813804047,10.13791523,2482.2,2481.5,1.0344]
[1727813804048,0.08872905,2481.9,2481.5,1.0344]
[1727813804298,1.0288,2482.4,2481.5,1.0344]
[1727813804299,4.02852,2482.3,2481.5,1.0344]
[1727813804483,5.05716,2482.4,2481.5,1.0344]
[1727813804484,0.08871241,2481.8,2481.5,1.0344]
[1727813804797,11.40818,2482.6,2481.5,1.0344]
[1727813804997,0.08869289,2481.7,2481.5,1.0344]
[1727813805305,13.48916523,2482.6,2481.5,1.0344]
[1727813805592,0.08867338,2481.6,2481.5,1.0344]
[1727813805887,4.0286,2482.3,2481.5,1.0344]
[1727813806092,15.43696,2482.4,2481.5,1.0344]
[1727813806306,0.08876747,2482.2,2481.5,1.0344]
[1727813806505,0.08878698,2482.3,2481.5,1.0344]
[1727813806648,0.08875512,2482.1,2481.5,1.0344]
[1727813806854,11.40847,2482.4,2481.5,1.0344]
[1727813807050,0.08879414,2482.3,2481.5,1.0344]
[1727813807704,4.02758,2482.9,2481.5,1.0344]
[1727813807928,13.48916523,2483.0,2481.3,3.0]
[1727813807929,0.08857115,2482.2,2481.7,0.9597]
[1727813808131,0.08857115,2482.2,2481.3,9.10916523]
[1727813808132,4.02715,2483.2,2481.9,0.9597]
[1727813808428,4.02698,2483.3,2481.9,0.9597]
[1727813808721,4.02722,2483.1,2481.9,0.9597]
[1727813808883,0.08574,2483.2,2481.9,0.9597]
[1727813809083,4.028,2482.7,2481.9,0.9597]
[1727813809481,0.08586598,2482.6,2481.9,0.9597]
[1727813809698,4.02767,2482.9,2481.9,0.9597]
[1727813809910,0.08561531,2482.5,2481.9,0.9597]
[1727813810217,1.0073,2483.2,2481.9,0.9597]
[1727813810218,4.02707,2483.2,2481.9,0.9597]
[1727813810376,1.543403,2483.2,2481.9,0.9597]
[1727813810576,8.05395,2483.3,2481.9,0.9597]
[1727813810577,0.0857957,2483.1,2481.9,0.9597]
[1727813810772,0.0857957,2483.1,2482.1,0.9793]
[1727813811007,0.0857957,2483.1,2482.3,1.0162]
[1727813811167,4.02633,2483.7,2482.5,1.0162]
[1727813811374,0.08571085,2483.0,2482.6,1.09258504]
[1727813811568,4.0269,2483.3,2482.6,1.0162]
[1727813812074,0.08592552,2483.2,2482.6,1.0162]
[1727813812372,1.12272552,2483.2,2482.6,1.0162]
[1727813812597,4.02738,2483.0,2482.6,1.0162]
[1727813812913,0.08586704,2482.9,2482.6,1.0162]
[1727813813084,4.02779,2482.8,2482.3,1.0251]
[1727813813293,0.08584754,2482.8,2482.3,1.0251]
[1727813813489,4.54249055,2483.0,2482.3,1.0251]
[1727813813700,0.08582805,2482.7,2482.3,1.0251]
[1727813813873,5.06394,2483.2,2482.3,1.0251]
[1727813813874,1.0368,2483.2,2482.3,1.0251]
[1727813814208,0.08580855,2482.6,2482.4,0.9769]
[1727813814419,5.03016,2484.0,2482.5,0.9769]
[1727813814617,4.02586,2484.0,2482.5,0.9769]
[1727813814821,0.08317046,2483.9,2482.7,0.9769]
[1727813815577,1.0043,2484.3,2482.7,0.9769]
[1727813815578,4.02551,2484.2,2482.7,0.9769]
[1727813815773,0.08315098,2483.8,2482.7,0.9769]
[1727813815973,0.08315098,2483.8,2482.6,3.39769]
[1727813815974,4.0261,2483.8,2482.8,0.9718]
[1727813816175,6.10916523,2484.1,2482.8,0.9718]
[1727813816176,4.0265,2483.6,2482.8,0.9718]
[1727813816393,0.41096315,2483.5,2482.8,0.9718]
[1727813816609,0.49444153,2483.5,2482.8,0.9718]
[1727813817194,0.08347838,2483.5,2482.8,0.9718]
[1727813817714,0.08350362,2483.4,2482.8,0.9718]
[1727813817915,4.02653,2483.6,2482.8,0.9718]
[1727813818117,0.08348413,2483.3,2482.8,0.9718]
[1727813818320,0.9862,2484.0,2482.8,0.9718]
[1727813818520,0.08346464,2483.2,2482.8,0.9718]
[1727813818817,4.02642,2483.6,2482.8,0.9718]
[1727813819143,0.08348125,2483.5,2482.8,0.9718]
[1727813819647,4.02683,2483.4,2482.8,0.9718]
[1727813820006,0.0834394,2483.3,2482.8,0.9718]
[1727813820545,0.08341873,2483.2,2482.8,0.9718]
[1727813820743,8.05298,2483.6,2482.8,0.9718]
[1727813820908,0.08337916,2483.1,2482.8,0.9718]
[1727813821107,23.55617,2483.8,2482.8,0.9718]
[1727813821358,0.08352326,2483.0,2482.8,0.9718]
[1727813821646,4.02628,2483.7,2482.8,0.9718]
[1727813821802,0.08350664,2482.9,2482.8,0.9718]
[1727813822007,4.02652,2483.6,2482.8,0.9718]
[1727813822252,4.8318,2483.6,2482.8,0.9718]
[1727813822451,0.08363219,2483.5,2482.8,0.9718]
[1727813822892,0.08363219,2483.5,2482.9,1.0562291]
[1727813823030,7.38,2483.9,2482.9,1.0562291]
[1727813823427,0.08091855,2483.8,2482.9,1.0562291]
[1727813824360,0.82701041,2483.8,2482.9,0.9757]
[1727813824864,0.08091855,2483.8,2482.9,0.9757]
[1727813825179,0.08091855,2483.8,2483.1,0.949]
[1727813825340,0.08091855,2483.8,2483.2,1.02952495]
[1727813825674,0.08084836,2483.7,2483.5,0.55]
[1727813825840,4.02447,2484.8,2483.6,4.02950936]
[1727813826173,0.08103928,2484.7,2483.8,0.9722]
[1727813826469,4.02455,2484.8,2484.0,0.9722]
[1727813826669,0.0809715,2484.6,2484.0,0.9722]
[1727813826974,0.08114128,2484.5,2484.0,0.9722]
[1727813827276,0.08112153,2484.4,2484.0,0.9722]
[1727813827430,4.02439,2484.9,2484.0,0.9722]
[1727813827631,1.22163869,2484.8,2484.0,0.9722]
[1727813827832,4.02497,2484.5,2484.0,0.9722]
[1727813828132,4.02497,2484.5,2482.6,7.49]
[1727813828133,0.55,2484.3,2482.7,0.9552]
[1727813828363,4.02593,2483.9,2482.7,0.9552]
[1727813828673,4.10702064,2483.8,2482.7,0.9552]
[1727813828884,0.08089064,2483.8,2482.7,0.9552]
[1727813829180,4.10708064,2483.8,2482.7,0.9552]
[1727813829328,4.02643,2483.6,2482.7,0.9552]
[1727813829845,4.10752875,2483.5,2482.7,0.9552]
[1727813830024,4.10752875,2483.5,2481.9,8.53513235]
[1727813830025,0.08094875,2483.5,2482.8,0.080551]
[1727813830230,0.41070806,2483.7,2482.4,0.9878]
[1727813830661,4.1075298,2483.6,2482.4,0.9878]
[1727813830830,4.02658,2483.5,2482.4,0.9878]
[1727813831031,0.08092701,2483.4,2482.4,0.9878]
[1727813831631,4.02693,2483.3,2482.4,0.9878]
[1727813831832,0.08088803,2483.2,2482.4,0.9878]
[1727813832257,4.96384,2483.4,2482.4,0.9878]
[1727813832466,2.12883877,2483.3,2482.4,0.9878]
[1727813832685,2.20974629,2483.3,2482.4,0.9878]
[1727813833831,0.08090752,2483.3,2482.4,0.9878]
[1727813834345,19.53,2483.5,2482.6,1.0035]
[1727813834533,0.08087244,2483.2,2482.6,1.0035]
[1727813834733,19.53,2483.5,2482.6,1.0035]
[1727813834976,0.08072047,2483.1,2482.6,1.0035]
[1727813835172,19.53,2483.5,2482.6,1.0035]
[1727813835376,0.08070098,2483.0,2482.6,1.0035]
[1727813835561,4.02683,2483.4,2482.6,1.0035]
[1727813835762,0.08068148,2482.9,2482.6,1.0035]
[1727813836091,7.38,2483.6,2482.6,1.0035]
[1727813836388,0.08058294,2482.8,2482.7,1.08221416]
[1727813836533,19.53,2484.2,2482.9,0.9261]
[1727813836739,4.01461319,2484.2,2483.1,0.9261]
[1727813836984,15.43071,2484.3,2483.1,0.9261]
[1727813837182,4.02569,2484.1,2483.1,0.9261]
[1727813837670,11.40539,2484.3,2483.1,0.9261]
[1727813837888,0.08089141,2484.2,2483.1,0.9261]
[1727813838858,0.08089141,2484.2,2482.7,0.55]
[1727813838859,0.08089141,2484.2,2483.6,3.0]
[1727813839184,0.82165993,2485.3,2483.6,3.0]
[1727813839185,0.9692,2485.2,2483.8,0.941]
[1727813839386,0.07547651,2484.1,2484.0,0.941]
[1727813839594,1.140373,2485.2,2484.0,0.941]
[1727813839890,0.07550676,2485.1,2484.2,0.9956]
[1727813840047,5.36144374,2485.1,2484.2,0.9956]
[1727813840247,1.33746374,2485.1,2484.2,0.9956]
[1727813840853,4.02415,2485.0,2484.2,0.9956]
[1727813841050,0.07546782,2484.9,2484.2,0.9956]
[1727813841287,5.28602698,2485.1,2484.2,0.9956]
[1727813841623,0.07554313,2484.8,2484.2,0.9956]
[1727813841745,11.40375,2485.3,2484.2,0.9956]
[1727813841951,0.07542107,2484.7,2484.2,0.9956]
[1727813842178,8.04842,2485.0,2484.2,0.9956]
[1727813842496,0.9685,2485.1,2484.2,0.9956]
[1727813842649,4.02392,2485.2,2484.2,0.9956]
[1727813842650,0.0755626,2484.9,2484.2,0.9956]
[1727813843698,4.02454,2484.8,2484.2,0.9956]
[1727813843910,4.10009102,2484.8,2484.2,0.9956]
[1727813844052,4.02505,2484.5,2483.3,0.9223]
[1727813844251,0.07547313,2484.4,2483.3,0.9223]
[1727813844468,0.07547313,2484.4,2483.0,2.0]
[1727813844684,4.9847291,2484.7,2483.5,0.9223]
[1727813844885,0.07600644,2484.6,2483.5,0.9223]
[1727813845194,5.44452999,2484.6,2483.5,0.9223]
[1727813845412,1.41964999,2484.6,2483.5,0.9223]
[1727813845716,4.02513,2484.4,2483.5,0.9223]
[1727813846010,4.57524,2484.4,2483.5,0.9223]
[1727813846167,4.02562,2484.1,2483.5,0.9223]
[1727813846370,0.805117,2484.0,2483.5,0.9223]
[1727813846570,0.07591233,2484.0,2483.5,0.9223]
[1727813846816,4.02555,2484.2,2483.5,0.9223]
[1727813846817,4.57544,2484.2,2483.5,0.9223]
[1727813846971,0.07589285,2483.9,2483.5,0.9223]
[1727813847315,7.38,2484.4,2483.5,0.9223]
[1727813847316,0.07585062,2483.8,2483.5,0.9223]
[1727813847509,7.38,2484.4,2483.5,0.9223]
[1727813847671,0.07584799,2483.7,2483.5,0.9223]
[1727813848008,23.55507,2484.5,2483.5,0.9223]
[1727813848165,0.07581165,2483.6,2483.5,0.9223]
[1727813848514,1.34364355,2484.6,2483.5,0.9223]
[1727813848515,5.36843355,2484.6,2483.5,0.9223]
[1727813848815,0.07581271,2483.6,2483.5,0.9223]
[1727813849152,4.025,2484.5,2483.5,0.9223]
[1727813849422,4.02545,2484.2,2483.5,0.9223]
[1727813849708,4.10159906,2484.1,2483.5,0.9223]
[1727813849922,4.10159906,2484.1,2482.6,0.9799]
[1727813849923,0.9744,2483.6,2482.6,0.9799]
[1727813850226,4.0273,2483.1,2482.6,0.9799]
[1727813850427,0.40273,2483.0,2482.6,0.9799]
[1727813850731,0.07599367,2483.0,2482.6,0.9799]
[1727813850883,19.53,2483.5,2482.7,0.9475]
[1727813851224,0.07605141,2483.4,2482.7,0.9475]
[1727813851406,0.07605141,2483.4,2482.9,0.9222]
[1727813851727,0.07598547,2483.3,2482.9,0.9222]
[1727813851903,4.02584,2484.0,2482.9,0.9222]
[1727813852107,1.140584,2483.9,2483.3,4.02679]
[1727813852311,5.166534,2483.9,2483.3,4.02679]
[1727813852513,4.02619,2483.8,2483.2,4.02706]
[1727813852931,0.07606343,2483.7,2483.2,4.02706]
[1727813853333,0.07606343,2483.7,2482.9,0.9222]
[1727813853634,5.59928717,2483.7,2482.9,0.9222]
[1727813853801,0.55,2483.6,2482.9,0.9222]
[1727813854145,0.07605604,2483.5,2482.9,0.9222]
[1727813854788,0.52428374,2483.7,2482.9,0.9222]
[1727813854995,0.07603655,2483.4,2482.9,0.9222]
[1727813855327,0.07601705,2483.3,2482.9,0.9222]
[1727813855539,4.55062374,2483.7,2482.9,0.9222]
[1727813855825,0.07599756,2483.2,2482.9,0.9222]
[1727813856028,4.88409237,2483.6,2482.9,0.9222]
[1727813856029,4.57681,2483.4,2482.9,0.9222]
[1727813856241,0.07560967,2483.1,2482.9,0.9222]
[1727813856452,0.9371,2483.3,2482.2,1.02]
[1727813856745,4.02823,2482.5,2481.4,1.02]
[1727813856905,4.02836,2482.4,2481.4,1.02]
[1727813857109,0.07552555,2482.4,2481.4,1.02]
[1727813857808,4.10395555,2482.4,2481.4,1.02]
[1727813858006,0.41039556,2482.3,2481.4,1.02]
[1727813858542,0.07548935,2482.2,2481.4,1.02]
[1727813858848,7.02779,2482.8,2481.4,1.08438203]
[1727813858999,0.07558748,2482.1,2481.5,1.0142]
[1727813859364,5.01108,2483.0,2481.6,0.4774311]
[1727813859499,0.07554427,2482.0,2481.4,0.9543]
[1727813859822,5.01098,2483.0,2481.6,0.9543]
[1727813860218,0.07568815,2482.9,2481.7,3.08057956]
[1727813860433,0.07568815,2482.9,2481.8,0.9543]
[1727813860434,4.10330815,2482.9,2481.8,0.9543]
[1727813860645,4.10330815,2482.9,2481.7,3.0]
[1727813860646,0.98711697,2482.9,2482.0,0.963]
[1727813860948,0.07568815,2482.9,2482.2,0.9404]
[1727813861245,0.9298,2483.3,2482.2,0.9404]
[1727813861454,4.0285,2482.4,2481.4,0.9404]
[1727813861657,4.02878,2482.2,2481.4,0.9404]
[1727813861807,0.07251982,2482.3,2481.4,0.9404]
[1727813862011,4.1013308,2482.1,2481.4,0.9404]
[1727813862240,4.02885,2482.1,2481.4,0.9404]
[1727813862447,0.07240908,2482.0,2481.4,0.9404]
[1727813862818,4.02864,2482.3,2481.4,0.9404]
[1727813863154,0.402864,2482.2,2481.4,0.9404]
[1727813863314,0.07243945,2482.2,2481.4,0.9404]
[1727813863509,4.02854,2482.3,2481.4,0.9404]
[1727813863709,0.07252271,2482.1,2481.4,0.9404]
[1727813863953,4.02884,2482.1,2481.4,0.9404]
[1727813864275,0.0725032,2482.0,2481.4,0.9404]
[1727813864463,0.48263752,2482.0,2481.4,0.9404]
[1727813865287,0.55,2481.9,2481.2,0.1203795]
[1727813865500,1.5351,2481.6,2481.2,0.1203795]
[1727813865775,6.14446304,2481.8,2481.2,0.1203795]
[1727813865776,3.07228286,2481.8,2481.2,0.1203795]
[1727813865962,0.07215072,2481.5,2481.2,0.1203795]
[1727813866281,3.9851,2481.9,2481.2,0.1203795]
[1727813866575,19.53,2482.0,2481.2,0.1203795]
[1727813866879,0.07160543,2481.8,2481.2,0.1203795]
[1727813867033,4.10083246,2481.9,2481.2,0.1203795]
[1727813867238,0.07161104,2481.7,2481.2,0.1203795]
[1727813867434,0.07168276,2481.8,2481.2,0.1203795]
[1727813867639,0.07164374,2481.6,2481.2,0.1203795]
[1727813867841,0.07166325,2481.7,2481.2,0.1203795]
[1727813868039,0.07160534,2481.5,2481.2,0.1203795]
[1727813868336,0.07152254,2481.4,2481.2,0.1203795]
[1727813868534,2.355889,2481.9,2481.2,0.1203795]
[1727813868764,0.0716186,2481.3,2481.2,0.1203795]
[1727813868946,0.9506,2482.2,2481.3,0.9578]
[1727813868947,4.02872,2482.2,2481.3,0.9578]
[1727813869785,7.02844,2482.4,2481.3,0.9578]
[1727813869944,0.9484,2482.5,2481.3,0.9578]
[1727813869945,4.02861,2482.3,2481.3,0.9578]
[1727813870143,4.02887,2482.1,2481.3,0.9578]
[1727813870796,0.805748,2482.1,2481.3,0.9578]
[1727813871145,4.0291,2482.0,2481.3,0.9578]
[1727813871345,0.805748,2482.1,2481.3,0.9578]
[1727813871541,4.02901,2482.0,2481.3,0.9578]
[1727813871973,4.02902,2482.0,2481.3,0.9578]
[1727813872143,4.5124968,2482.0,2481.3,0.9578]
[1727813872344,4.02925,2481.9,2481.3,0.9578]
[1727813873173,4.02917,2481.9,2481.3,0.9578]
[1727813874096,4.02934,2481.8,2481.3,0.9578]
[1727813874254,4.02917,2481.9,2481.3,0.9578]
[1727813874454,4.0295,2481.7,2481.3,0.9578]
[1727813874668,4.0295,2481.7,2481.2,0.1203795]
[1727813874868,4.02982,2481.5,2481.2,0.1203795]
[1727813875091,4.03014,2481.3,2481.2,0.1203795]
[1727813875449,4.0301,2481.4,2481.2,0.1203795]
[1727813876057,4.02983,2481.5,2481.2,0.1203795]
[1727813876512,0.55,2481.4,2481.2,0.1203795]
[1727813876657,23.55951,2481.7,2481.2,0.1203795]
[1727813876860,4.0299,2481.5,2481.2,0.1203795]
[1727813877086,4.58005,2481.4,2481.2,0.1203795]
[1727813878001,19.53,2481.7,2481.2,0.1203795]
[1727813878213,4.02943,2481.8,2481.3,0.9434]
[1727813878500,4.02995,2481.5,2481.2,0.1203795]
[1727813878658,4.0295,2481.7,2481.2,0.1203795]
[1727813878857,2.857535,2481.7,2481.2,0.1203795]
[1727813879094,6.887115,2481.7,2481.2,0.1203795]
[1727813880505,2.857535,2481.7,2481.2,0.1203795]
[1727813880865,6.887115,2481.7,2481.2,0.1203795]
[1727813881204,4.58014,2481.3,2481.2,0.1203795]
[1727813881512,28.98556,2481.3,2481.2,0.1203795]
[1727813882666,0.55,2481.1,2479.9,0.934]
[1727813882864,4.03202,2480.2,2479.9,0.934]
[1727813883079,0.9767,2480.6,2479.6,0.934]
[1727813883080,5.00805,2480.6,2479.6,0.934]
[1727813883285,0.06814559,2480.1,2479.6,0.934]
[1727813883495,4.03155,2480.5,2479.6,0.934]
[1727813883819,4.60066097,2480.4,2479.6,0.934]
[1727813884923,0.56903097,2480.4,2479.6,0.934]
[1727813885111,4.03201,2480.2,2479.6,0.934]
[1727813885284,0.55,2480.3,2479.6,0.934]
[1727813885629,0.06791731,2480.2,2479.6,0.934]
[1727813885919,4.03205,2480.2,2479.6,0.934]
[1727813886119,0.403205,2480.1,2479.6,0.934]
[1727813886329,0.47112,2480.1,2479.6,0.934]
[1727813886529,0.067915,2480.1,2479.6,0.934]
[1727813888128,1.02404953,2480.0,2479.2,0.9994]
[1727813888635,4.10020953,2480.0,2479.2,0.9994]
[1727813888811,4.03244,2479.9,2479.2,0.9994]
[1727813889008,0.0679278,2479.9,2479.2,0.9994]
[1727813889229,0.47794658,2479.9,2479.2,0.9994]
[1727813889429,0.0679278,2479.9,2479.2,0.9994]
[1727813889599,0.0679278,2479.9,2479.6,5.40005591]
[1727813889801,8.3474,2480.6,2479.8,0.9287]
[1727813889802,7.38,2480.6,2479.8,0.9287]
[1727813890029,13.1174,2481.0,2480.3,5.40005591]
[1727813890030,7.38,2481.0,2480.3,5.40005591]
[1727813890237,0.9674,2481.6,2480.5,0.9287]
[1727813890437,11.4093,2481.9,2480.5,0.9287]